bitfinex-derivatives/quotes_SOLF0:USTF0_20250307
["timestamp","ask_amount","ask_price","bid_price","bid_amount"]
[1741351731821,29.93027397,142.05,141.91,76.64785431]
[1741351732027,5.0950606,142.04,141.91,76.64785431]
[1741351732225,3.8219,142.04,141.91,76.64785431]
[1741351732521,3.8219,142.04,141.91,106.57812828]
[1741351732725,1.8809,142.04,141.94,29.93027397]
[1741351732923,0.05129832,141.99,141.96,0.05055939]
[1741351733326,0.05129832,141.99,141.97,29.93027397]
[1741351733524,3.9181,142.09,141.98,5.9595]
[1741351734626,3.9181,142.09,142.02,0.05044103]
[1741351734627,0.04884212,142.05,142.02,0.05044103]
[1741351734828,7.08884212,142.05,142.02,0.05044103]
[1741351735325,0.04884212,142.05,142.02,0.05044103]
[1741351735531,7.0402,142.04,142.02,0.05044103]
[1741351735725,0.04884212,142.05,142.02,0.05044103]
[1741351737033,33.79397397,142.13,142.02,0.05044103]
[1741351737034,7.0367,142.11,142.03,29.93027397]
[1741351737335,3.8637,142.13,142.03,29.93027397]
[1741351737634,7.0375,142.1,142.03,29.93027397]
[1741351738030,3.8637,142.13,142.03,29.93027397]
[1741351738333,7.0386,142.07,142.05,0.04918953]
[1741351738533,0.04989132,142.08,142.05,0.04918953]
[1741351739138,7.0391,142.06,142.05,0.04918953]
[1741351740427,0.04989132,142.08,142.05,0.04918953]
[1741351741036,7.0391,142.06,142.05,0.04918953]
[1741351741439,14.0817,142.03,141.84,107.47367465]
[1741351741736,29.93027397,141.95,141.84,107.47367465]
[1741351742339,29.93027397,141.95,141.85,22.51694689]
[1741351742538,0.0518294,141.91,141.89,0.05283585]
[1741351743634,29.93027397,142.01,141.89,0.05283585]
[1741351743835,29.93027397,142.01,141.88,29.93027397]
[1741351744035,29.93027397,142.01,141.89,2.0699]
[1741351744640,29.93027397,141.98,141.9,2.0476]
[1741351744845,0.0534721,141.96,141.94,0.05367539]
[1741351745037,29.93027397,142.01,141.94,0.05367539]
[1741351745231,0.04880932,141.96,141.94,0.05367539]
[1741351745435,29.93027397,142.01,141.94,0.05367539]
[1741351745940,0.0500646,141.99,141.94,0.05367539]
[1741351747438,29.93027397,141.98,141.94,0.05367539]
[1741351750832,7.0439,141.97,141.94,0.05367539]
[1741351751739,7.0443,141.96,141.94,0.05367539]
[1741351752040,29.93027397,141.98,141.94,0.05367539]
[1741351752243,7.0437,141.97,141.94,0.05367539]
[1741351752540,29.93027397,141.98,141.94,0.05367539]
[1741351752743,7.0445,141.95,141.94,0.05367539]
[1741351753040,31.89447397,141.98,141.86,3.8659]
[1741351753239,7.0467,141.91,141.86,3.8659]
[1741351753446,29.93027397,141.92,141.86,1.9234]
[1741351753641,29.93027397,141.96,141.86,1.9234]
[1741351754150,0.0522944,141.92,141.9,0.05302533]
[1741351757335,7.042,142.01,141.9,33.5032993]
[1741351757542,33.81037397,142.05,141.91,2.0278]
[1741351757743,31.33852632,142.02,141.92,2.043]
[1741351758344,0.0482665,141.98,141.96,0.0533039]
[1741351760251,7.0915665,141.98,141.96,0.0533039]
[1741351760548,0.0482665,141.98,141.96,0.0533039]
[1741351761947,0.0482665,141.98,141.96,7.0969039]
[1741351762342,0.0482665,141.98,141.96,0.0533039]
[1741351763150,0.0482665,141.98,141.96,7.0970039]
[1741351763550,0.0482665,141.98,141.97,7.0436]
[1741351765457,33.81037397,142.05,142.0,7.0421]
[1741351765660,40.85007397,142.05,142.0,7.0421]
[1741351766059,10.9198,142.05,142.0,7.0421]
[1741351766662,0.05151043,142.04,142.01,0.04741842]
[1741351766962,29.93027397,142.08,141.96,29.93027397]
[1741351767160,7.09078777,142.04,142.01,0.04641683]
[1741351767361,0.05028777,142.04,142.01,0.04641683]
[1741351768969,0.05028777,142.04,142.03,7.0406]
[1741351769371,11.1442,142.1,142.05,7.0393]
[1741351769678,60.09072581,142.14,142.0,3.9354]
[1741351769873,2.0448,142.14,142.02,29.93027397]
[1741351770265,31.97507397,142.14,142.0,3.9354]
[1741351770466,0.04594124,142.09,142.0,3.9354]
[1741351770677,29.93027397,142.11,142.06,0.05085543]
[1741351770978,7.0397,142.05,142.0,6.0083]
[1741351771180,29.93027397,142.11,142.0,6.0083]
[1741351771481,7.0407,142.03,142.0,6.0083]
[1741351771676,0.05052344,142.07,142.0,1.9328]
[1741351771879,2.01022344,142.07,142.0,1.9328]
[1741351772273,0.05052344,142.07,142.0,1.9328]
[1741351772781,7.0397,142.05,142.02,0.04846737]
[1741351772972,0.05052344,142.07,142.02,0.04846737]
[1741351774272,0.05052344,142.07,142.02,29.97874134]
[1741351774472,7.0368,142.11,142.03,1.9132]
[1741351774687,31.89147397,142.15,142.03,1.9132]
[1741351774888,31.89147397,142.15,142.04,7.0399]
[1741351775179,31.89147397,142.15,142.03,1.9132]
[1741351775375,7.0373,142.1,142.05,7.0393]
[1741351775683,0.04471233,142.1,142.08,0.05336375]
[1741351775874,0.04471233,142.1,142.03,8.9535]
[1741351776074,0.04471233,142.1,142.08,0.04489888]
[1741351776270,0.04471233,142.1,142.03,1.9132]
[1741351776479,0.04471233,142.1,142.07,7.0382]
[1741351776980,0.04471233,142.1,142.05,0.04590435]
[1741351777483,7.08201233,142.1,142.06,7.0389]
[1741351777683,0.04471233,142.1,142.05,0.04590435]
[1741351778579,7.08181233,142.1,142.06,7.0388]
[1741351779082,0.04471233,142.1,142.06,7.0388]
[1741351779286,7.08201233,142.1,142.06,7.0388]
[1741351779882,7.08201233,142.1,142.07,7.0386]
[1741351780588,0.04471233,142.1,142.08,7.038]
[1741351780882,0.04471233,142.1,142.06,3.9732]
[1741351781073,7.08181233,142.1,142.06,3.9732]
[1741351781274,7.08181233,142.1,142.07,7.0383]
[1741351781470,7.08181233,142.1,142.06,3.9732]
[1741351781672,0.04471233,142.1,142.09,7.0376]
[1741351782384,0.04471233,142.1,142.08,0.04964713]
[1741351782887,0.04471233,142.1,142.09,7.0376]
[1741351784986,4.0444,142.18,142.08,0.04964713]
[1741351785287,4.0444,142.18,142.06,3.9732]
[1741351785482,7.0359,142.13,142.06,3.9732]
[1741351785681,4.0444,142.18,142.06,3.9732]
[1741351786088,7.0354,142.14,142.06,3.9732]
[1741351786386,0.05172414,142.13,142.11,7.08210236]
[1741351787678,0.05172414,142.13,142.11,0.04580236]
[1741351788384,7.0361,142.12,142.11,0.04580236]
[1741351788786,0.05172414,142.13,142.11,0.04580236]
[1741351789679,0.05172414,142.13,142.12,7.0361]
[1741351792287,6.0759,142.23,142.11,0.04580236]
[1741351792488,6.0759,142.23,142.09,2.0484]
[1741351792784,6.0759,142.23,142.15,7.0346]
[1741351793381,7.0335,142.18,142.15,7.0346]
[1741351793585,6.0759,142.23,142.15,7.08206033]
[1741351794188,6.0759,142.23,142.15,0.04746033]
[1741351794891,7.0341,142.17,142.15,0.04746033]
[1741351795492,7.0341,142.16,142.15,0.04746033]
[1741351796895,6.0759,142.23,142.15,0.04746033]
[1741351797785,24.78498208,142.23,142.15,0.04746033]
[1741351797994,7.0334,142.18,142.15,0.04746033]
[1741351798689,18.70908208,142.21,142.15,0.04746033]
[1741351799396,7.034,142.17,142.15,0.04746033]
[1741351800195,18.70908208,142.21,142.15,0.04746033]
[1741351800890,24.78498208,142.23,142.15,0.04746033]
[1741351801495,7.0324,142.2,142.17,7.0334]
[1741351801685,24.78498208,142.23,142.17,7.0334]
[1741351801892,24.78498208,142.23,142.19,0.04806955]
[1741351802087,7.0322,142.2,142.19,0.04806955]
[1741351802591,7.0322,142.2,142.19,6.955e-05]
[1741351808403,7.08066415,142.21,142.19,6.955e-05]
[1741351808606,0.04876415,142.21,142.19,6.955e-05]
[1741351809699,7.0322,142.2,142.19,6.955e-05]
[1741351813508,0.04876415,142.21,142.19,6.955e-05]
[1741351813714,7.08066415,142.21,142.19,6.955e-05]
[1741351814005,0.04876415,142.21,142.19,6.955e-05]
[1741351814205,7.0322,142.2,142.19,6.955e-05]
[1741351815807,7.0322,142.2,142.09,2.0067]
[1741351815808,3.52,142.2,142.09,2.0067]
[1741351816005,18.70908208,142.17,142.09,2.0067]
[1741351816907,7.0358,142.13,142.1,7.0368]
[1741351817109,7.0358,142.13,142.1,7.08891106]
[1741351817414,0.04681224,142.13,142.1,0.05211106]
[1741351817808,7.0366,142.11,142.1,0.05211106]
[1741351818706,0.04681224,142.13,142.1,0.05211106]
[1741351818909,7.0365,142.12,142.1,0.05211106]
[1741351819109,0.04681224,142.13,142.1,0.05211106]
[1741351819309,7.0361,142.12,142.1,0.05211106]
[1741351821310,7.0366,142.11,142.1,0.05211106]
[1741351821711,0.04681224,142.13,142.1,0.05211106]
[1741351822611,7.0361,142.12,142.1,0.05211106]
[1741351822815,0.04681224,142.13,142.1,0.05211106]
[1741351823316,7.0366,142.11,142.1,0.05211106]
[1741351824315,31.85145902,142.22,142.1,18.76119314]
[1741351824515,3.8941,142.21,142.13,18.70908208]
[1741351824717,3.8941,142.21,142.17,7.0336]
[1741351825013,2.0584,142.22,142.15,18.70908208]
[1741351825715,2.0584,142.22,142.17,0.04742222]
[1741351825903,2.0584,142.22,142.18,7.0328]
[1741351826313,28.11565184,142.23,142.17,18.7565043]
[1741351826516,28.11565184,142.23,142.19,18.70908208]
[1741351826517,103.06591983,142.22,142.19,18.70908208]
[1741351826822,103.06591983,142.22,142.2,7.0317]
[1741351827023,103.06591983,142.22,142.19,18.70908208]
[1741351827416,103.06591983,142.22,142.18,5.8033]
[1741351827417,103.06591983,142.22,142.21,18.70908208]
[1741351827619,103.06591983,142.22,142.21,25.74078208]
[1741351828124,103.06591983,142.22,142.2,0.04730858]
[1741351828521,7.0317,142.21,142.2,0.04730858]
[1741351829917,18.70908208,142.21,142.12,18.70908208]
[1741351830122,18.70908208,142.21,142.1,18.70908208]
[1741351830512,29.93974745,142.21,142.08,36.97764745]
[1741351830713,29.93974745,142.21,142.08,29.93974745]
[1741351831028,0.04747299,142.16,142.13,0.05220074]
[1741351831523,7.0351,142.14,142.13,0.05220074]
[1741351838324,7.0351,142.14,142.13,7.4e-07]
[1741351844826,0.04747299,142.16,142.13,7.4e-07]
[1741351845532,7.0351,142.14,142.13,7.4e-07]
[1741351848836,14.0743,142.1,141.96,9.66564306]
[1741351849037,29.93974745,142.05,141.96,9.66564306]
[1741351849224,3.8656,142.04,141.96,8.66564306]
[1741351849430,7.0436,141.97,141.96,8.66564306]
[1741351851538,7.0436,141.97,141.95,0.04598497]
[1741351851739,7.09114367,141.98,141.95,0.04598497]
[1741351852036,0.04794367,141.98,141.95,0.04598497]
[1741351853131,194.0,142.08,141.95,0.04598497]
[1741351853132,112.42540199,142.13,141.97,29.93974745]
[1741351853342,116.41320199,142.13,142.04,29.93974745]
[1741351853543,116.41320199,142.13,142.01,29.93974745]
[1741351853843,3.9878,142.13,142.01,29.93974745]
[1741351854139,7.0372,142.1,142.01,29.93974745]
[1741351854343,0.0518566,142.08,142.06,0.04512988]
[1741351857339,7.04,142.05,141.98,29.93974745]
[1741351857735,225.85854745,142.12,141.98,29.93974745]
[1741351857937,7.0409,142.03,141.97,3.9365]
[1741351858443,29.93974745,142.09,141.97,3.9365]
[1741351858644,29.93974745,142.09,141.99,0.05383169]
[1741351858844,0.05208279,142.04,141.97,1.8957]
[1741351859344,0.05208279,142.04,141.99,0.04736912]
[1741351860140,7.09258279,142.04,141.99,0.04736912]
[1741351860341,0.05208279,142.04,141.99,0.04736912]
[1741351863445,7.0419,142.01,141.99,0.04736912]
[1741351863750,0.05208279,142.04,141.99,0.04736912]
[1741351863944,7.0421,142.0,141.99,0.04736912]
[1741351864149,5.8912,142.03,141.99,0.04736912]
[1741351864352,0.04964951,142.01,141.95,29.93974745]
[1741351864552,0.04964951,142.01,142.0,0.05246898]
[1741351864848,0.04964951,142.01,141.99,0.05389827]
[1741351866853,7.0421,142.0,141.99,0.05389827]
[1741351868755,0.04964951,142.01,141.99,0.05389827]
[1741351870561,0.04964951,142.01,142.0,7.0421]
[1741351870757,0.04964951,142.01,141.99,0.05389827]
[1741351871565,7.0394,142.06,142.0,7.0421]
[1741351871765,3.9988,142.07,142.01,29.93974745]
[1741351872157,7.0378,142.09,142.03,7.0405]
[1741351872863,4.0585,142.11,142.01,29.93974745]
[1741351873060,0.04906748,142.07,142.05,0.05197805]
[1741351874868,7.0391,142.06,142.05,0.05197805]
[1741351875060,0.04906748,142.07,142.05,0.05197805]
[1741351875467,7.08796748,142.07,142.05,0.05197805]
[1741351876466,7.0391,142.06,142.05,0.05197805]
[1741351876668,0.04906748,142.07,142.05,0.05197805]
[1741351876968,7.08796748,142.07,142.05,0.05197805]
[1741351877365,0.04906748,142.07,142.05,7.09127805]
[1741351877567,0.04906748,142.07,142.05,0.05197805]
[1741351878568,0.04906748,142.07,142.05,7.09127805]
[1741351879067,0.04906748,142.07,142.06,7.0391]
[1741351882171,3.8993,142.16,142.08,7.0379]
[1741351882367,5.8367,142.16,142.08,7.0379]
[1741351882769,24.55767308,142.16,142.07,18.72097308]
[1741351882963,7.0374,142.1,142.05,18.72097308]
[1741351883267,7.0374,142.1,142.07,7.0383]
[1741351884374,7.0374,142.1,142.08,7.0381]
[1741351884669,24.55767308,142.16,142.07,7.0385]
[1741351884877,24.55767308,142.16,142.05,18.72097308]
[1741351885181,24.55767308,142.16,142.1,0.04963782]
[1741351885366,5.8367,142.16,142.1,0.04963782]
[1741351887372,7.0357,142.13,142.1,7.08643782]
[1741351887575,195.22500704,142.19,142.1,0.04963782]
[1741351887777,5.8669,142.18,142.09,18.72097308]
[1741351887974,1.22500704,142.19,142.17,18.72097308]
[1741351888174,28.11565184,142.21,142.17,18.72097308]
[1741351888381,28.11565184,142.21,142.2,18.72097308]
[1741351889080,5.8669,142.23,142.2,18.72097308]
[1741351889482,5.8669,142.23,142.2,18.77513287]
[1741351889683,7.0312,142.22,142.2,18.77513287]
[1741351889984,5.8669,142.23,142.2,0.05415979]
[1741351890180,7.0315,142.22,142.2,0.05415979]
[1741351890480,5.8669,142.23,142.2,0.05415979]
[1741351890682,7.0332,142.18,142.13,29.91312431]
[1741351891877,0.05151355,142.17,142.14,0.05104499]
[1741351892877,7.08521355,142.17,142.14,0.05104499]
[1741351893588,0.05151355,142.17,142.14,0.05104499]
[1741351894279,7.0346,142.15,142.14,0.05104499]
[1741351894478,0.05151355,142.17,142.14,0.05104499]
[1741351894882,7.0346,142.15,142.14,0.05104499]
[1741351895187,0.05151355,142.17,142.14,0.05104499]
[1741351897379,0.05151355,142.17,142.14,7.08584499]
[1741351897583,0.05151355,142.17,142.14,0.05104499]
[1741351899193,0.05151355,142.17,142.14,7.08574499]
[1741351899386,0.05151355,142.17,142.14,0.05104499]
[1741351900788,0.05151355,142.17,142.16,29.91312431]
[1741351901593,7.08511355,142.17,142.14,0.05104499]
[1741351901795,0.05151355,142.17,142.14,0.05104499]
[1741351902301,0.05151355,142.17,142.14,7.08614499]
[1741351902593,0.05151355,142.17,142.16,29.91312431]
[1741351903190,0.05151355,142.17,142.14,0.05104499]
[1741351903391,0.05151355,142.17,142.15,7.0343]
[1741351903996,0.05151355,142.17,142.14,0.05104499]
[1741351904193,0.05151355,142.17,142.14,7.08594499]
[1741351904697,0.05151355,142.17,142.14,0.05104499]
[1741351905185,7.0346,142.15,142.14,0.05104499]
[1741351906994,0.05151355,142.17,142.07,29.91312431]
[1741351907199,7.0372,142.1,142.06,5.8879]
[1741351907498,3.9898,142.16,142.06,12.9267]
[1741351907698,7.0378,142.09,142.06,5.8879]
[1741351908292,7.0386,142.07,142.06,0.05005006]
[1741351908689,0.04939524,142.09,142.01,28.90056663]
[1741351908895,1.9181,142.08,142.01,28.90056663]
[1741351909094,3.9761,142.08,142.01,28.90056663]
[1741351909494,3.9761,142.08,141.98,35.89412431]
[1741351909694,3.9761,142.08,141.96,28.90056663]
[1741351909903,0.05201197,142.03,142.01,0.05370916]
[1741351910199,3.9761,142.08,142.01,0.05370916]
[1741351910492,3.9761,142.08,142.01,7.09490916]
[1741351910693,0.04972421,142.06,142.01,0.05370916]
[1741351911097,0.04972421,142.06,142.02,7.0407]
[1741351911798,0.04972421,142.06,142.04,7.0401]
[1741351912102,0.04972421,142.06,142.02,29.91312431]
[1741351912296,0.04972421,142.06,142.05,7.0396]
[1741351913099,2.421e-05,142.06,142.05,36.95272431]
[1741351913301,29.91312431,142.18,142.05,36.95272431]
[1741351913302,29.91312431,142.18,142.05,29.91312431]
[1741351913507,3.9529,142.17,142.08,29.91312431]
[1741351914402,0.05300508,142.14,142.11,0.04673936]
[1741351915507,0.05300508,142.14,142.13,7.0356]
[1741351915802,0.05300508,142.14,142.11,29.95986367]
[1741351916199,0.05300508,142.14,142.11,0.04673936]
[1741351919302,7.08820508,142.14,142.11,0.04673936]
[1741351919909,7.0359,142.13,142.11,0.04673936]
[1741351920110,0.05300508,142.14,142.11,29.95986367]
[1741351920512,132.97904414,142.27,142.17,7.0335]
[1741351920513,2.0581,142.23,142.17,7.0335]
[1741351921609,0.05252555,142.21,142.19,0.05378074]
[1741351921805,7.08422555,142.21,142.19,0.05378074]
[1741351922006,0.05252555,142.21,142.19,0.05378074]
[1741351922407,7.0322,142.2,142.19,0.05378074]
[1741351923916,7.08432555,142.21,142.19,0.05378074]
[1741351924112,0.05252555,142.21,142.19,0.05378074]
[1741351926315,7.0322,142.2,142.19,0.05378074]
[1741351929118,0.05252555,142.21,142.12,6.1585]
[1741351929319,2.0301,142.2,142.12,6.1585]
[1741351929514,2.0301,142.2,142.05,38.62083063]
[1741351929718,7.0376,142.09,142.06,5.8669]
[1741351930311,7.0878978,142.09,142.06,5.91687959]
[1741351930517,0.0502978,142.09,142.06,0.04997959]
[1741351930912,7.0386,142.07,142.06,0.04997959]
[1741351931824,0.0502978,142.09,142.06,0.04997959]
[1741351932024,0.0502978,142.09,142.06,7.08907959]
[1741351932527,0.0502978,142.09,142.06,0.04997959]
[1741351933319,0.0502978,142.09,142.06,29.9631039]
[1741351934022,7.0383,142.08,142.06,0.04997959]
[1741351934618,7.0386,142.07,142.06,0.04997959]
[1741351935033,0.0502978,142.09,142.06,0.04997959]
[1741351935729,0.0502978,142.09,142.07,7.0386]
[1741351936928,1.2249208,142.19,142.08,59.82624862]
[1741351937231,34.04965184,142.24,142.15,29.91312431]
[1741351937431,34.04965184,142.24,142.16,7.0338]
[1741351938031,0.05044036,142.21,142.19,0.04992015]
[1741351938930,7.0322,142.2,142.19,0.04992015]
[1741351939331,0.05044036,142.21,142.19,0.04992015]
[1741351941239,7.0322,142.2,142.19,0.04992015]
[1741351943243,33.43312431,142.2,142.02,38.62083063]
[1741351943434,29.91312431,142.17,142.04,6.0166]
[1741351943639,4.0354,142.16,142.04,6.0166]
[1741351944346,7.0348,142.15,142.06,36.95192431]
[1741351944541,4.0354,142.16,142.09,0.05203878]
[1741351944542,0.05396415,142.11,142.09,0.05203878]
[1741351944741,4.0354,142.16,142.09,0.05203878]
[1741351944942,0.05402423,142.11,142.09,0.05203878]
[1741351945144,4.0354,142.16,142.09,0.05203878]
[1741351945341,0.04720635,142.11,142.09,0.05203878]
[1741351945643,0.04850964,142.14,142.09,0.05203878]
[1741351945942,7.08390964,142.14,142.09,0.05203878]
[1741351946142,0.04850964,142.14,142.09,0.05203878]
[1741351946741,0.04850964,142.14,142.09,29.96516309]
[1741351947045,7.0362,142.12,142.09,29.96516309]
[1741351947242,0.04850964,142.14,142.09,0.05203878]
[1741351948341,7.036,142.13,142.09,0.05203878]
[1741351948541,0.04850964,142.14,142.09,0.05203878]
[1741351948944,7.0371,142.1,142.09,0.05203878]
[1741351953057,7.0408,142.03,141.97,62.0]
[1741351953255,7.0408,142.03,141.98,5.7494]
[1741351953457,7.0408,142.03,141.98,12.7923]
[1741351953857,29.91312431,142.11,141.98,5.7494]
[1741351954155,0.04986409,142.06,142.03,0.04911891]
[1741351954349,7.08906409,142.06,142.03,0.04911891]
[1741351954547,0.04986409,142.06,142.03,0.04911891]
[1741351954944,7.04,142.05,142.03,0.04911891]
[1741351955454,0.04986409,142.06,142.03,7.08961891]
[1741351955649,6.081,142.13,142.03,0.04911891]
[1741351955955,6.081,142.13,142.01,29.91312431]
[1741351956150,6.081,142.13,142.04,29.91312431]
[1741351956352,6.081,142.13,142.05,4.0296]
[1741351956746,7.037,142.11,142.05,11.0688]
[1741351956952,0.05060708,142.1,142.08,0.05096993]
[1741351958449,0.05060708,142.1,142.08,7.08896993]
[1741351959657,0.05060708,142.1,142.08,0.05096993]
[1741351959861,0.05060708,142.1,142.09,7.0376]
[1741351961455,3.8823,142.17,142.12,7.0361]
[1741351961656,3.8823,142.17,142.07,29.91312431]
[1741351961657,1.9306,142.17,142.07,29.91312431]
[1741351961858,7.0352,142.14,142.07,29.91312431]
[1741351962157,7.0352,142.14,142.1,7.0367]
[1741351962553,0.05069376,142.13,142.11,0.046743]
[1741351963956,0.05069376,142.13,142.11,7.083143]
[1741351964560,0.05069376,142.13,142.11,0.046743]
[1741351964756,7.0361,142.12,142.11,0.046743]
[1741351966163,7.08659376,142.13,142.11,0.046743]
[1741351966467,0.05069376,142.13,142.12,7.0361]
[1741351966854,0.05069376,142.13,142.11,0.046743]
[1741351967163,0.05069376,142.13,142.12,7.0361]
[1741351967554,0.05069376,142.13,142.11,7.083143]
[1741351967959,0.05069376,142.13,142.11,0.046743]
[1741351968157,0.05069376,142.13,142.12,7.0361]
[1741351968561,0.05069376,142.13,142.11,0.046743]
[1741351969470,7.0361,142.12,142.11,0.046743]
[1741351970867,0.05069376,142.13,142.11,0.046743]
[1741351971670,0.05069376,142.13,142.11,7.083043]
[1741351972068,7.08639376,142.13,142.11,7.083043]
[1741351972364,0.05069376,142.13,142.11,0.046743]
[1741351972767,7.0361,142.12,142.11,0.046743]
[1741351974965,7.08639376,142.13,142.11,0.046743]
[1741351975265,0.05069376,142.13,142.12,7.0361]
[1741351976662,4.0678,142.21,142.11,18.76258681]
[1741351976663,7.0334,142.18,142.16,7.0341]
[1741351976863,4.0678,142.21,142.16,7.0341]
[1741351977963,4.0678,142.21,142.17,0.04798536]
[1741351978662,7.0331,142.18,142.17,0.04798536]
[1741351979971,7.0364,142.12,142.1,18.71584381]
[1741351980272,18.71584381,142.19,142.05,4.0296]
[1741351980273,18.71584381,142.19,142.08,18.71584381]
[1741351980475,7.0364,142.12,142.08,18.71584381]
[1741351980775,18.71584381,142.17,142.08,18.71584381]
[1741351980977,18.71584381,142.17,142.06,20.60564381]
[1741351981166,18.71584381,142.17,142.11,0.04666969]
[1741351981167,0.05034441,142.14,142.11,0.04666969]
[1741351981665,7.0361,142.12,142.11,0.04666969]
[1741351986879,5.33498247,142.2,142.11,193.04666969]
[1741351987073,108.51604246,142.21,142.19,29.95853558]
[1741351987278,92.30320496,142.21,142.2,7.0322]
[1741351988175,118.83939759,142.21,142.2,5.96309747]
[1741351988379,118.83939759,142.21,142.2,12.99529747]
[1741351988581,118.83939759,142.21,142.2,5.96309747]
[1741351989981,118.83939759,142.21,142.2,67.96309747]
[1741351990177,118.83939759,142.21,142.19,30.01218005]
[1741351991283,7.0283,142.28,142.19,30.01218005]
[1741351991483,7.0283,142.28,142.19,29.95853558]
[1741351991684,14.0683,142.28,142.22,0.05070413]
[1741351993089,7.04,142.28,142.22,0.05070413]
[1741351993889,7.0292,142.27,142.22,0.05070413]
[1741351994087,7.04,142.28,142.22,0.05070413]
[1741351994381,7.04,142.28,142.19,29.95853558]
[1741351994689,7.03,142.25,142.16,29.95853558]
[1741351995178,14.07,142.25,142.16,29.95853558]
[1741351995580,0.04971616,142.22,142.19,0.05076678]
[1741351995984,7.08971616,142.22,142.19,0.05076678]
[1741351996185,0.04971616,142.22,142.19,30.00930236]
[1741352000090,7.08971616,142.22,142.19,30.00930236]
[1741352004990,0.04971616,142.22,142.19,30.00930236]
[1741352008586,0.04971616,142.22,142.21,18.6851258]
[1741352009296,7.08091616,142.22,142.21,18.6851258]
[1741352011989,0.04971616,142.22,142.21,18.6851258]
[1741352012795,7.08091616,142.22,142.21,18.6851258]
[1741352015294,0.04971616,142.22,142.21,18.6851258]
[1741352016097,2.0209,142.29,142.21,18.6851258]
[1741352016295,15.00623764,142.28,142.23,18.6851258]
[1741352016497,15.00623764,142.27,142.23,18.6851258]
[1741352016801,15.00623764,142.26,142.23,18.6851258]
[1741352016998,15.00623764,142.25,142.23,18.6851258]
[1741352017297,5.77162986,142.24,142.23,18.73379841]
[1741352017494,5.77162986,142.26,142.23,18.73379841]
[1741352017696,5.77162986,142.25,142.23,18.73379841]
[1741352017895,5.77162986,142.24,142.23,18.73379841]
[1741352018094,5.77162986,142.26,142.23,18.73379841]
[1741352018397,5.77162986,142.25,142.23,18.73379841]
[1741352018599,5.77162986,142.24,142.23,18.73379841]
[1741352018997,5.77047937,142.24,142.23,18.73379841]
[1741352019603,2.0209,142.29,142.23,18.73379841]
[1741352019803,15.00949188,142.28,142.23,18.73379841]
[1741352020004,15.00949188,142.27,142.23,18.73379841]
[1741352020205,15.00949188,142.26,142.23,18.73379841]
[1741352020400,5.77288149,142.25,142.23,18.73379841]
[1741352020704,9.0609,142.29,142.23,18.73379841]
[1741352020906,15.01285536,142.28,142.25,18.6851258]
[1741352021100,15.01285536,142.27,142.25,18.6851258]
[1741352021305,15.01285536,142.26,142.25,18.6851258]
[1741352021504,5.77417514,142.26,142.25,18.6851258]
[1741352021704,12.81417514,142.26,142.23,18.73379841]
[1741352021901,5.77417514,142.25,142.23,18.73379841]
[1741352022099,7.04,142.26,142.23,18.73379841]
[1741352022300,15.01284097,142.25,142.23,18.73379841]
[1741352022506,5.77404429,142.24,142.23,18.73379841]
[1741352022705,5.77404429,142.25,142.23,18.73379841]
[1741352022908,5.77404429,142.24,142.23,18.73379841]
[1741352024007,4.0321,142.3,142.23,18.73379841]
[1741352024212,15.01753102,142.29,142.23,18.73379841]
[1741352024510,22.04603102,142.28,142.23,18.73379841]
[1741352024707,15.01339989,142.27,142.23,18.73379841]
[1741352024906,15.01339989,142.26,142.23,18.73379841]
[1741352025107,5.77438457,142.25,142.23,18.73379841]
[1741352025300,14.068,142.29,142.23,18.73379841]
[1741352025505,15.01153158,142.28,142.23,18.73379841]
[1741352025710,15.01153158,142.27,142.23,25.76409841]
[1741352026011,5.77366599,142.26,142.23,18.73379841]
[1741352026214,5.77366599,142.25,142.23,18.73379841]
[1741352026408,7.04,142.29,142.23,18.73379841]
[1741352026610,15.01169974,142.28,142.23,18.73379841]
[1741352026922,15.01169974,142.27,142.23,25.76439841]
[1741352027126,5.77373067,142.26,142.23,25.76439841]
[1741352027414,5.77373067,142.25,142.23,25.76439841]
[1741352027620,5.77373067,142.24,142.23,25.76439841]
[1741352027813,7.04,142.29,142.23,18.73379841]
[1741352028010,16.94627753,142.28,142.23,18.73379841]
[1741352028217,15.03537753,142.27,142.23,18.73379841]
[1741352028520,15.03537753,142.26,142.23,18.73379841]
[1741352028720,15.03537753,142.25,142.23,18.73379841]
[1741352028916,5.78283751,142.24,142.23,25.76399841]
[1741352029321,15.04258534,142.24,142.23,25.76399841]
[1741352033719,15.04258534,142.24,142.23,18.73379841]
[1741352033917,22.08258534,142.24,142.23,25.76449841]
[1741352034119,15.04258534,142.24,142.23,25.76449841]
[1741352034523,15.04258534,142.24,142.23,19.03426393]